[Event "Czech Open-Rapid 2022"]
[Site "Pardubice"]
[Date "2022.07.21"]
[Round "7.19"]
[White "Sarkar, Justin"]
[Black "Pacl, Vaclav"]
[Result "1/2-1/2"]
[ECO "E21"]
[WhiteElo "2346"]
[BlackElo "2036"]
[Annotator "TA"]
[PlyCount "54"]
[EventDate "2022.07.20"]
[EventType "swiss"]
[EventCountry "CZE"]
[SourceTitle "playchess.com"]
[Source "ChessBase"]
[SourceQuality "1"]
[TimeControl "1200+10"]

{[%evp 29,54,4,16,-43,-50,-44,-31,-47,-45,-49,0,0,-5,0,6,0,0,0,0,-165,0,-10,-10,-10,-2,-10,-9]} 1. d4 {[%emt 0:01:30]} Nf6 {[%emt 0:00:08]} 2. c4 {[%emt 0:00:13]} e6 {[%emt 0:00:03]} 3. Nf3 {[%emt 0:00:20]} b6 {[%emt 0:00:04]} 4. Nc3 {[%emt 0:01:25]} Bb7 {[%emt 0:00:40]} 5. Bg5 {[%emt 0:00:04]} h6 {[%emt 0:00:08]} 6. Bh4 {[%emt 0:00:12]} Be7 {[%emt 0:00:02]} 7. e3 {[%emt 0:00:45]} O-O {[%emt 0:00:46]} 8. Bd3 {[%emt 0:00:41]} d5 {[%emt 0:00:04]} 9. Bxf6 {[%emt 0:03:16]} Bxf6 {[%emt 0:00:03]} 10. cxd5 {[%emt 0:00:02]} exd5 {[%emt 0:00:02]} 11. b4 {[%emt 0:00:03]} c5 {[%emt 0:00:11]} 12. bxc5 {[%emt 0:00:04]} bxc5 {[%emt 0:00:01]} 13. Rb1 {[%emt 0:00:05]} Bc6 {[%emt 0:00:20]} 14. O-O {[%emt 0:00:53]} Nd7 {[%emt 0:01:58]} 15. Bb5 {[%emt 0:00:56]} Qc7 {[%emt 0:01:39]} 16. e4 {[%emt 0:02:34] [#] D58: Queen's Gambit Declined: Tartakower Defence.} ({White should try} 16. Qd2 $11) 16... dxe4 $146 {[%emt 0:06:51]} ({Predecessor:} 16... cxd4 17. Nxd4 Bxd4 18. Qxd4 dxe4 19. Bxc6 Qxc6 20. Nxe4 Rfe8 21. Nd6 {½-½ (21) Larin,I (2307)-Zolendowski,C (2132) LSS email 2009}) 17. Bxc6 {[%emt 0:00:07]} Qxc6 {[%emt 0:00:01]} 18. d5 {[%emt 0:00:02] Black is slightly better.} Qa6 {[%emt 0:00:39]} 19. Nxe4 {[%emt 0:00:07]} Rfd8 {[%emt 0:00:45]} 20. Qc2 {[%emt 0:03:42]} Be7 {[%emt 0:04:08]} 21. Rfd1 {[%emt 0:01:28]} Bd6 {[%emt 0:00:42]} 22. Nfd2 {[%emt 0:01:18]} Nb6 {[%emt 0:00:39]} 23. Nxd6 {[%emt 0:01:50]} ({But not} 23. Nxc5 Bxc5 24. Qxc5 Rxd5 $17) 23... Rxd6 {[%emt 0:00:02]} 24. Qxc5 {[%emt 0:00:03] [#]} (24. Ne4 $11 {and White is okay.} Rxd5 25. Nxc5 Rxd1+ 26. Rxd1) 24... Rad8 $2 {[%emt 0:00:51]} (24... Rxd5 $19 25. Qe3 Rad8) 25. Ne4 {[%emt 0:01:31] The position is equal.} Rxd5 {[%emt 0:00:02]} 26. Rxd5 {[%emt 0:00:03]} Rxd5 {[%emt 0:00:02]} 27. Qc2 {[%emt 0:00:01]} Qd3 {[%emt 0:00:33] Weighted Error Value: White=0.36/Black=0.24 (precise)} 1/2-1/2

[Event "Czech Open-Rapid 2022"]
[Site "Pardubice"]
[Date "2022.07.21"]
[Round "7.20"]
[White "Malinovsky, Petr"]
[Black "Freisler, Pavel"]
[Result "0-1"]
[ECO "E26"]
[WhiteElo "1959"]
[BlackElo "2256"]
[Annotator "NA RC"]
[PlyCount "88"]
[EventDate "2022.07.20"]
[EventType "swiss"]
[EventCountry "CZE"]
[SourceTitle "playchess.com"]
[Source "ChessBase"]
[SourceQuality "1"]
[TimeControl "1200+10"]

1. d4 {[%emt 0:00:02]} Nf6 {[%emt 0:00:01]} 2. c4 {[%emt 0:00:00]} e6 {[%emt 0:00:00]} 3. Nc3 {[%emt 0:00:03]} Bb4 {[%emt 0:00:02]} 4. a3 {[%emt 0:00:03]} Bxc3+ {[%emt 0:00:05]} 5. bxc3 {[%emt 0:00:01]} c5 {[%emt 0:00:25]} 6. e3 {[%emt 0:00:17]} b6 {[%emt 0:01:00]} 7. Bd3 {[%emt 0:00:18]} Nc6 {[%emt 0:00:10]} 8. Ne2 {[%emt 0:00:11]} O-O {[%emt 0:00:11]} 9. O-O {[%emt 0:00:17]} Ba6 {[%emt 0:00:07]} 10. Ng3 {[%emt 0:01:15]} d6 {[%emt 0:01:11]} 11. Bb2 {[%emt 0:00:41]} Rc8 {[%emt 0:01:07]} 12. Rc1 {[%emt 0:00:02]} e5 {[%emt 0:01:35]} 13. f3 {[%emt 0:02:27]} Na5 {[%emt 0:02:48]} 14. Qe2 {[%emt 0:00:08]} Qe8 {[%emt 0:00:08]} 15. Nf5 {[%emt 0:00:52]} Rd8 {[%emt 0:00:01]} 16. e4 {[%emt 0:00:49]} Qa4 {[%emt 0:01:08]} 17. f4 {[%emt 0:00:44]} Bxc4 {[%emt 0:00:58]} 18. fxe5 {[%emt 0:00:22]} dxe5 {[%emt 0:00:13]} 19. Nh6+ {[%emt 0:03:36]} Kh8 {[%emt 0:00:14]} 20. Rxf6 {[%emt 0:00:01]} gxf6 {[%emt 0:00:02]} 21. Nf5 {[%emt 0:02:12]} Rg8 {[%emt 0:00:44]} 22. Rf1 {[%emt 0:01:16]} Rg6 {[%emt 0:01:48]} 23. Ne7 {[%emt 0:00:23]} Rdg8 {[%emt 0:00:04]} 24. Nxg6+ {[%emt 0:01:33]} Rxg6 {[%emt 0:00:04]} 25. dxe5 {[%emt 0:00:00]} fxe5 {[%emt 0:00:22]} 26. Bc1 {[%emt 0:00:18]} Kg7 {[%emt 0:00:18]} 27. Qf3 {[%emt 0:00:26]} Qd7 {[%emt 0:00:52]} 28. Bxc4 {[%emt 0:00:39]} Nxc4 {[%emt 0:00:02]} 29. Rd1 {[%emt 0:00:44]} Qg4 {[%emt 0:00:44]} 30. Qxg4 {[%emt 0:01:04]} Rxg4 31. Kf2 {[%emt 0:00:16]} Rxe4 {[%emt 0:00:38]} 32. Kf3 {[%emt 0:00:49]} Rh4 {[%emt 0:00:04]} 33. Kg3 {[%emt 0:00:16]} Rh5 {[%emt 0:00:17]} 34. h4 {[%emt 0:00:10]} Rf5 {[%emt 0:00:13]} 35. Re1 {[%emt 0:00:37]} h5 {[%emt 0:00:41]} 36. Bg5 {[%emt 0:00:14]} Nxa3 {[%emt 0:00:57]} 37. Ra1 {[%emt 0:00:36]} Nb5 {[%emt 0:00:05]} 38. c4 {[%emt 0:00:02]} Nd6 {[%emt 0:00:03]} 39. Rxa7 {[%emt 0:00:26]} Ne4+ {[%emt 0:00:54]} 40. Kh2 {[%emt 0:00:24]} Nxg5 {[%emt 0:00:01]} 41. hxg5 {[%emt 0:00:01]} Rxg5 {[%emt 0:00:02]} 42. Re7 {[%emt 0:00:18]} Kg6 {[%emt 0:00:11]} 43. Rb7 {[%emt 0:00:02]} Rg4 {[%emt 0:00:07]} 44. Rxb6+ {[%emt 0:00:02]} f6 {[%emt 0:00:01]} 0-1

[Event "Czech Open-Rapid 2022"]
[Site "Pardubice"]
[Date "2022.07.21"]
[Round "7.21"]
[White "Sir, Zbynek"]
[Black "Ret, Adam Josef"]
[Result "1/2-1/2"]
[ECO "B00"]
[WhiteElo "2199"]
[BlackElo "2023"]
[Annotator "NA RC"]
[PlyCount "67"]
[EventDate "2022.07.20"]
[EventType "swiss"]
[EventCountry "CZE"]
[SourceTitle "playchess.com"]
[Source "ChessBase"]
[SourceQuality "1"]
[TimeControl "1200+10"]

1. e4 {[%emt 0:00:53]} d6 {[%emt 0:00:03]} 2. d4 {[%emt 0:00:03]} Nf6 {[%emt 0:00:02]} 3. Bd3 {[%emt 0:00:05]} e5 {[%emt 0:00:02]} 4. c3 {[%emt 0:00:06]} Nc6 {[%emt 0:00:15]} 5. Ne2 {[%emt 0:00:17]} g6 {[%emt 0:00:02]} 6. O-O {[%emt 0:00:14]} Bg7 {[%emt 0:00:03]} 7. Bg5 {[%emt 0:00:29]} h6 {[%emt 0:00:14]} 8. Bh4 {[%emt 0:00:11]} g5 {[%emt 0:01:06]} 9. Bg3 {[%emt 0:00:02]} Nh5 {[%emt 0:00:07]} 10. Bb5 {[%emt 0:01:49]} Bd7 {[%emt 0:01:00]} 11. d5 {[%emt 0:02:12]} Ne7 {[%emt 0:00:17]} 12. Qa4 {[%emt 0:00:30]} a6 {[%emt 0:00:48]} 13. Bxd7+ {[%emt 0:00:02]} Qxd7 {[%emt 0:00:01]} 14. Qxd7+ {[%emt 0:00:04]} Kxd7 {[%emt 0:00:03]} 15. f3 {[%emt 0:00:08]} f5 {[%emt 0:03:00]} 16. Nd2 {[%emt 0:01:38]} Nf6 {[%emt 0:01:12]} 17. c4 {[%emt 0:00:29]} b6 {[%emt 0:00:20]} 18. Bf2 {[%emt 0:00:22]} a5 {[%emt 0:00:04]} 19. b3 {[%emt 0:00:13]} h5 {[%emt 0:00:06]} 20. exf5 {[%emt 0:00:23]} Nxf5 {[%emt 0:00:06]} 21. Ne4 {[%emt 0:00:13]} Nh7 {[%emt 0:02:14]} 22. N2g3 {[%emt 0:00:48]} Nxg3 {[%emt 0:00:28]} 23. Bxg3 {[%emt 0:00:15]} Rhg8 {[%emt 0:06:31]} 24. Be1 {[%emt 0:00:38]} Bh6 {[%emt 0:00:18]} 25. Bd2 {[%emt 0:00:06]} Rg6 {[%emt 0:00:01]} 26. a3 {[%emt 0:00:43]} Nf6 {[%emt 0:00:01]} 27. h3 {[%emt 0:02:32]} Rf8 {[%emt 0:02:42]} 28. Ng3 {[%emt 0:01:09]} g4 {[%emt 0:01:31]} 29. Bxh6 {[%emt 0:00:27]} Rxh6 {[%emt 0:00:03]} 30. fxg4 {[%emt 0:01:22]} hxg4 {[%emt 0:00:01]} 31. hxg4 {[%emt 0:01:55]} Rg8 {[%emt 0:00:13]} 32. Nf5 {[%emt 0:01:42]} Rhg6 {[%emt 0:00:08]} 33. Nh4 {[%emt 0:00:09]} Rh6 {[%emt 0:00:11]} 34. Nf5 1/2-1/2

[Event "Czech Open-Rapid 2022"]
[Site "Pardubice"]
[Date "2022.07.21"]
[Round "7.22"]
[White "Silar, Lubomir"]
[Black "Bouska, Jiri"]
[Result "1/2-1/2"]
[ECO "A49"]
[WhiteElo "1993"]
[BlackElo "2157"]
[Annotator "TA"]
[PlyCount "63"]
[EventDate "2022.07.20"]
[EventType "swiss"]
[EventCountry "CZE"]
[SourceTitle "playchess.com"]
[Source "ChessBase"]
[SourceQuality "1"]
[TimeControl "1200+10"]

{[%evp 16,63,24,15,22,0,36,30,30,28,28,8,25,21,24,24,21,21,37,39,43,39,127,108,118,103,110,108,109,116,111,81,283,257,746,353,1618,35,18,0,0,0,49,47,53,28,34,25,22,0]} 1. d4 {[%emt 0:00:05]} Nf6 {[%emt 0:00:01]} 2. Nf3 {[%emt 0:00:05]} g6 {[%emt 0:00:02]} 3. g3 {[%emt 0:00:09]} Bg7 {[%emt 0:00:03]} 4. Bg2 {[%emt 0:00:01]} O-O {[%emt 0:00:05]} 5. O-O d6 6. Nc3 {[%emt 0:01:41]} Nbd7 {[%emt 0:01:20]} 7. h3 {[%emt 0:01:17]} e5 {[%emt 0:01:01]} 8. e4 {[%emt 0:01:10]} exd4 {[%emt 0:00:44]} 9. Nxd4 {[%emt 0:00:03]} ({Much worse is} 9. Qxd4 Re8 10. Qc4 (10. Bg5 h6 $15) 10... Nb6 $15) 9... Nc5 {[%emt 0:00:24] B07: Pirc Defence: Miscellaneous Systems.} 10. Nb3 {[%emt 0:00:35] was the old line (10.Re1).} Nxb3 {[%emt 0:01:16]} 11. axb3 {[%emt 0:00:02][%cal Ba2b3,Bb3b4,Bb4b5][%mdl 32]} Bd7 {[%emt 0:00:25] [#] White has an edge.} 12. Kh2 $146 {[%emt 0:03:19][%cal Oe4e5]} ({Predecessor:} 12. Qd3 Bc6 13. b4 a6 14. f4 Re8 15. Bd2 b5 16. Rae1 Qc8 17. g4 Qb7 18. g5 {½-½ (52) Aseev,K (2530)-Vorotnikov,V (2495) St Petersburg 1997}) 12... Bc6 {[%emt 0:00:13]} 13. Qd3 {[%emt 0:02:00]} Re8 {[%emt 0:02:17]} 14. b4 {[%emt 0:01:34]} a6 {[%emt 0:00:47]} 15. Re1 {[%emt 0:01:02]} d5 {[%emt 0:04:43]} 16. e5 {[%emt 0:02:03][%cal Oe5f6]} Ne4 {[%emt 0:00:39]} 17. f4 {[%emt 0:05:09]} Nxc3 {[%emt 0:00:14]} 18. bxc3 {[%emt 0:00:02]} f6 {[%emt 0:03:29]} (18... Qe7 $14) 19. b5 $1 $16 {[%emt 0:00:22]} axb5 {[%emt 0:01:31]} 20. Rxa8 {[%emt 0:00:04]} Qxa8 {[%emt 0:00:04]} 21. Bxd5+ {[%emt 0:00:03]} Kh8 {[%emt 0:00:15]} 22. Bxc6 $1 {[%emt 0:01:28] 0x0.001eb844c810dp-1022s more active pieces.} bxc6 {[%emt 0:00:02]} 23. e6 {[%emt 0:00:02] f5 is the strong threat.} Qd8 $2 {[%emt 0:04:05] [#]} (23... Bf8 $16) 24. Qd7 $1 $18 {[%emt 0:00:51]} Kg8 $2 {[%emt 0:00:18]} (24... f5 25. Qxc6 Kg8 26. Qxb5 Bf8) 25. Ba3 {[%emt 0:00:34]} (25. f5 $142 {Threatens to win with Qf7+.} gxf5 26. Rd1 Qxd7 27. exd7) 25... f5 $2 {[%emt 0:00:02]} (25... Bf8) 26. Qxd8 $2 {[%emt 0:00:05]} ({White must play} 26. Qf7+ $18 Kh8 {[#]} 27. Rd1 $3 {[%mdl 512]}) 26... Rxd8 {[%emt 0:00:03][%mdl 4096] Endgame KRB-KRB} 27. e7 {[%emt 0:00:06]} Re8 {[%emt 0:00:02]} 28. Re6 {[%emt 0:00:01]} Kf7 {[%emt 0:00:25]} (28... Bxc3 $11 29. Bc5 Kf7 30. Rxc6 Rc8) 29. Rxc6 $14 {[%emt 0:00:04]} Rc8 {[%emt 0:00:17]} 30. c4 {[%emt 0:00:15]} bxc4 {[%emt 0:00:03]} 31. Rxc4 {[%emt 0:00:02]} Bf6 {[%emt 0:00:03]} 32. Kg2 {[%emt 0:00:55] Weighted Error Value: White=0.56/Black=0.36} 1/2-1/2

[Event "Czech Open-Rapid 2022"]
[Site "Pardubice"]
[Date "2022.07.21"]
[Round "7.23"]
[White "Kotva, Milan"]
[Black "Ibrahim, Emad Eldin"]
[Result "1/2-1/2"]
[ECO "B27"]
[WhiteElo "1833"]
[BlackElo "2028"]
[Annotator "TA"]
[PlyCount "68"]
[EventDate "2022.07.20"]
[EventType "swiss"]
[EventCountry "CZE"]
[SourceTitle "playchess.com"]
[Source "ChessBase"]
[SourceQuality "1"]
[TimeControl "1200+10"]

{[%evp 13,68,-1,1,-29,-7,-18,-12,-16,60,-12,-10,-16,-12,-152,-25,-20,-10,0,0,-7,0,0,0,0,0,0,-5,-27,-2,-32,-25,-77,-81,-85,-93,-99,-89,-256,0,-424,-64,-260,-260,-260,-242,-387,-374,-409,-395,-767,-765,-745,-740,-799,-788,-768,-760]} 1. e4 {[%emt 0:00:42]} c5 {[%emt 0:00:01]} 2. Nf3 {[%emt 0:00:03]} g6 {[%emt 0:00:01]} 3. Bc4 {[%emt 0:00:13]} Bg7 {[%emt 0:00:13]} 4. d3 {[%emt 0:00:03]} Nc6 {[%emt 0:00:02]} 5. c3 {[%emt 0:00:06]} d6 {[%emt 0:01:02]} 6. O-O {[%emt 0:00:27]} Nf6 {[%emt 0:00:05]} 7. h3 {[%emt 0:00:17]} O-O {[%emt 0:00:07]} 8. a3 {[%emt 0:00:10] B50: Sicilian: 2...d6, Miscellaneous.} Rb8 {[%emt 0:00:03]} 9. Be3 {[%emt 0:00:11]} b5 {[%emt 0:00:12]} 10. Ba2 {[%emt 0:00:02] [#] The position is equal.} b4 $146 {[%emt 0:00:32]} (10... a5 $11) ({Predecessor:} 10... a5 11. Qc2 Ba6 12. Nbd2 b4 13. axb4 cxb4 14. Bd5 Nxd5 15. exd5 Ne5 16. Nxe5 Bxe5 {½-½ (48) Lata,S (1460)-Eggink,M (2002) Warsaw 2011}) 11. Nbd2 {[%emt 0:02:57]} ({Better is} 11. axb4 $14 cxb4 12. Nbd2) 11... bxc3 {[%emt 0:00:07]} 12. bxc3 {[%emt 0:00:02]} Ba6 {[%emt 0:00:57]} 13. Nc4 {[%emt 0:00:40]} (13. Bc4 $11 {keeps the balance.} Qa5 14. Qc2) 13... Bxc4 {[%emt 0:00:29]} (13... d5 $17 14. exd5 Nxd5 15. Bxc5 Nxc3) 14. Bxc4 $11 {[%emt 0:00:03]} Qa5 {[%emt 0:00:01] Inhibits Qa4.} 15. Qc2 {[%emt 0:00:29]} Nd7 {[%emt 0:00:34]} 16. Rfc1 {[%emt 0:00:38]} Nde5 {[%emt 0:00:20]} 17. Nxe5 {[%emt 0:00:21]} Nxe5 {[%emt 0:00:03]} 18. Ba2 {[%emt 0:00:15]} Rfc8 {[%emt 0:01:24]} 19. f4 {[%emt 0:00:41]} Nd7 {[%emt 0:00:02]} 20. Bd2 {[%emt 0:00:39]} Nb6 {[%emt 0:00:14]} (20... Rc7 $5 {[%cal Rc7b7]}) 21. Qd1 {[%emt 0:00:11]} Na4 {[%emt 0:00:29]} 22. Qe1 {[%emt 0:00:46]} (22. f5 $11 {remains equal.}) 22... Rb2 $17 {[%emt 0:00:20][%cal Ob2d2]} 23. e5 {[%emt 0:01:00]} dxe5 {[%emt 0:00:40]} 24. fxe5 {[%emt 0:00:03]} c4 {[%emt 0:04:46]} 25. d4 {[%emt 0:00:12] [#]} (25. Bxc4 $17 Qxe5 26. Qxe5 Bxe5 27. Ra2) 25... Qd5 $2 {[%emt 0:00:57]} (25... Bxe5 $1 $19 {[%mdl 512] aiming for ...Bf6.} 26. dxe5 Qd5) 26. Bb1 $2 {[%emt 0:00:44][%mdl 8192] [#]} (26. Rcb1 $1 $11) 26... Nc5 $2 {[%emt 0:00:16]} ({Black should play} 26... Nxc3 $1 $19 {[%mdl 512]} 27. Kh1 {[#]} Bxe5 $1 {[%mdl 512]} 28. Rxc3 Qxd4) 27. Ra2 $2 {[%emt 0:00:49]} ({White should try} 27. Rc2 $15 Nd3 28. Qf1) 27... Rxa2 $19 {[%emt 0:00:11]} 28. Bxa2 {[%emt 0:00:07]} Nd3 $40 {[%emt 0:00:01][%csl LRc1,LRe1][%mdl 128] Black attacks with force.} 29. Qh4 {[%emt 0:00:46]} (29. Qe2 $142 Nxc1 30. Bxc1) 29... Nxc1 {[%emt 0:00:06]} 30. Bxc1 {[%emt 0:00:02]} Bxe5 {[%emt 0:02:15]} 31. dxe5 $2 {[%emt 0:02:34]} (31. Qxe7 Bd6 32. Qe2) 31... Qd1+ {[%emt 0:00:02] Black is clearly winning.} 32. Kh2 {[%emt 0:00:01]} Qxc1 {[%emt 0:00:03]} 33. Qd4 {[%emt 0:02:33]} Qxa3 {[%emt 0:00:28]} 34. Bxc4 {[%emt 0:00:09]} Qc5 {[%mdl 32768] Weighted Error Value: White=1.04/Black=0.53. An unexpected result.} 1/2-1/2

[Event "Czech Open-Rapid 2022"]
[Site "Pardubice"]
[Date "2022.07.21"]
[Round "7.24"]
[White "Postl, Petr"]
[Black "Dosedel, Jiri"]
[Result "0-1"]
[ECO "B09"]
[WhiteElo "1900"]
[BlackElo "2008"]
[Annotator "TA"]
[PlyCount "126"]
[EventDate "2022.07.20"]
[EventType "swiss"]
[EventCountry "CZE"]
[SourceTitle "playchess.com"]
[Source "ChessBase"]
[SourceQuality "1"]
[TimeControl "1200+10"]

{[%evp 12,126,42,41,45,16,19,34,39,23,61,27,218,0,-14,-48,-2,0,0,-7,7,-16,0,0,10,-67,48,39,42,53,114,101,106,112,104,100,97,0,177,188,137,160,238,238,238,207,435,428,432,414,504,496,500,487,441,61,58,0,343,347,298,-16,-22,-7,-6,-512,-479,-459,-447,-916,-533,-629,-578,-731,-664,-897,-299,-690,-682,-1198,-1133,-1176,-1214,-1677,-1647,-1641,-1562,-29975,-29976,-29974,-7562,-29974,-29975,-29968,-5420,-29984,-29985,-29985,-29986,-29988,-29989,-29990,-29990,-29990,-29991,-29992,-29991,-29991,-29992,-29996,-29991,-29991,-29992,-29997,-29990,-29999,-6019]} 1. e4 {[%emt 0:00:02]} d6 {[%emt 0:00:02]} 2. d4 {[%emt 0:00:02]} Nf6 {[%emt 0:00:01]} 3. Nc3 {[%emt 0:00:10]} g6 {[%emt 0:00:03]} 4. f4 {[%emt 0:00:11]} c6 {[%emt 0:00:06]} 5. Nf3 {[%emt 0:00:03]} Bg7 {[%emt 0:00:23]} 6. Be3 {[%emt 0:00:15]} O-O {[%emt 0:00:07]} 7. Qd2 {[%emt 0:00:01]} b5 {[%emt 0:00:25][%cal Bb7b5,Bb5b4][%mdl 32] B09: Pirc Defence: Austrian Attack.} 8. e5 {[%emt 0:01:40]} Ng4 {[%emt 0:00:03]} 9. Bg1 {[%emt 0:00:13] [#]} b4 $146 {[%emt 0:00:43] White is slightly better.} ({Predecessor:} 9... dxe5 10. h3 exd4 11. O-O-O Qa5 12. Nxd4 b4 13. Nb1 e5 14. hxg4 exd4 15. Bxd4 Bxg4 16. Bxg7 Kxg7 {½-½ (48) Fisher,C (1815)-Smith,D (1916) Hull 2018}) 10. Ne4 {[%emt 0:00:59]} c5 {[%emt 0:02:29][%cal Bc6c5,Bc5c4][%mdl 32]} 11. h3 {[%emt 0:01:49]} (11. dxc5 dxe5 12. h3 (12. Qxb4 exf4 13. Bb5 Qd5 $17) 12... Nf6 13. Nxf6+ (13. Qxb4 exf4 14. Bd3 Nd5 $15) 13... exf6 $11) 11... Bb7 $2 {[%emt 0:00:11]} (11... Nh6 $1 $11) 12. Neg5 $2 {[%emt 0:00:36]} (12. dxc5 Nxe5 13. Nfg5 (13. fxe5 Bxe4 14. Ng5 d5 $11) (13. cxd6 Nxf3+ 14. gxf3 Bxe4 $17) 13... d5 14. Qxb4 (14. fxe5 dxe4 15. Qxb4 Qc7 $15) 14... Qc7 $11) ({White must play} 12. hxg4 $18 {Hoping for Neg5.} Bxe4 13. Ng5 (13. dxc5 dxe5 14. Qxb4 Bxf3 $14)) 12... Nh6 $1 $11 {[%emt 0:00:23]} 13. Bc4 {[%emt 0:01:28]} d5 {[%emt 0:06:49]} (13... cxd4 $15 14. Qxb4 Qc7 15. Bxd4 Nc6) 14. Bd3 {[%emt 0:00:26]} c4 {[%emt 0:00:06]} 15. Be2 $36 {[%emt 0:00:16][%mdl 2048] White is more active.} ({Reject} 15. Qxb4 Bc8 16. Be2 f6 $17) 15... a5 {[%emt 0:00:07]} 16. h4 {[%emt 0:00:47]} Bc8 {[%emt 0:00:45][%cal Bb7c8,Bc8f5,Bf5e4][%mdl 32]} 17. h5 {[%emt 0:00:31]} f6 {[%emt 0:00:43] [#]} 18. Nh3 {[%emt 0:01:47]} ({White should try} 18. hxg6 $1 $11 hxg6 (18... fxg5 19. gxh7+) 19. Nh3 (19. exf6 $2 exf6 20. Nh3 Nf5 $17)) 18... Kf7 {[%emt 0:02:11]} ({Better is} 18... gxh5 $15 19. Nf2 Qe8) 19. hxg6+ {[%emt 0:04:07]} hxg6 {[%emt 0:00:02]} 20. Nh4 {[%emt 0:00:43]} Nf5 {[%emt 0:00:32]} (20... Rh8 $14) 21. Nxf5 $16 {[%emt 0:01:23]} Bxf5 {[%emt 0:00:03]} 22. g4 {[%emt 0:00:02]} Be4 {[%emt 0:00:02]} 23. Rh2 {[%emt 0:00:17]} Rh8 {[%emt 0:01:12]} 24. O-O-O {[%emt 0:00:19]} (24. Qe3 $16) 24... Qb6 $2 {[%emt 0:00:19]} (24... b3 $11 25. axb3 cxb3) 25. Nf2 $18 {[%emt 0:01:20]} Rxh2 {[%emt 0:00:21]} ({Black should play} 25... c3 $18 26. bxc3 bxc3 27. Qxc3 Rxh2 28. Bxh2 f5 29. Nxe4 fxe4) 26. Bxh2 $16 {[%emt 0:00:00]} f5 {[%emt 0:02:22]} (26... c3 $16 {was called for.} 27. bxc3 bxc3 28. Qxc3 f5 29. Nxe4 fxe4) 27. Nxe4 $18 {[%emt 0:00:06]} fxe4 {[%emt 0:00:02]} 28. f5 {[%emt 0:00:05]} gxf5 $2 {[%emt 0:01:31]} (28... Kg8 29. Qg5 b3) 29. gxf5 {[%emt 0:00:03] Black must now prevent e6+.} Qh6 {[%emt 0:00:05]} 30. Bf4 {[%emt 0:00:10]} Qh4 {[%emt 0:00:03]} 31. Qe3 {[%emt 0:01:16]} Nc6 {[%emt 0:00:09]} 32. Bg5 {[%emt 0:00:07]} Qh2 {[%emt 0:00:29]} 33. Rf1 $2 {[%emt 0:00:06]} (33. f6 $18) 33... Rh8 $1 $14 {[%emt 0:00:13][%cal Ba8h8,Bh8h6,Bh6h1][%mdl 32] [#]} 34. f6 {[%emt 0:00:46]} (34. Bxc4 $1 $14 dxc4 35. Qxe4 Nxe5 36. Kb1 (36. dxe5 Qxe5 37. Qxc4+ Kf8 $14)) 34... Bh6 $2 {[%emt 0:00:02][%mdl 8192]} (34... exf6 $11 35. Bxf6 (35. exf6 Bh6 $11) 35... Bh6 $1 36. Bg5+ (36. Bxh8+ $2 {perishes.} Kg8 $19) 36... Ke8) 35. fxe7+ $1 $18 {[%emt 0:00:07]} Ke8 {[%emt 0:00:02][%cal Oc6d4] [#] And now ...Nxd4! would win.} 36. Bxh6 $2 {[%emt 0:00:13]} (36. Rf6 $1 $18 {[%cal Rf6c6]} Bxg5 37. Qxg5 Nxe7 38. Re6) 36... Qxh6 $11 {[%emt 0:00:04] Chess con chili.} 37. Qxh6 {[%emt 0:00:50]} Rxh6 $18 {[%emt 0:00:01][%mdl 4096] Endgame KRB-KRN} 38. Rf6 $2 {[%emt 0:00:04][%mdl 8192] White is now going downhill.} (38. c3 $11 {and White is okay.}) 38... Rh1+ $19 {[%emt 0:00:10]} 39. Kd2 {[%emt 0:00:01]} Nxd4 {[%emt 0:00:07]} 40. Rf2 {[%emt 0:00:55] Inhibits Rh2.} (40. Bg4 $142 Rh4 41. Rg6) 40... Kxe7 {[%emt 0:00:22] aiming for ...Rh3.} 41. Bg4 {[%emt 0:00:01]} Rh4 {[%emt 0:00:32]} 42. Bc8 {[%emt 0:00:10]} Nf3+ {[%emt 0:00:08]} 43. Ke3 {[%emt 0:00:20]} Nxe5 $2 {[%emt 0:00:04]} (43... d4+ 44. Ke2 Nxe5) 44. Rg2 $2 {[%emt 0:00:07]} (44. Kd4 Rh5 45. Bb7 Nf3+ 46. Kc5) 44... Kd6 {[%emt 0:00:12]} 45. Rg3 {[%emt 0:00:16]} Kc5 {[%emt 0:00:03] Threatens to win with ...d4+.} 46. c3 {[%emt 0:00:00] Against d4+} Rh2 {[%emt 0:00:53]} 47. cxb4+ {[%emt 0:00:09]} axb4 {[%emt 0:00:02]} 48. Rg5 {[%emt 0:00:04]} Kd6 {[%emt 0:00:15]} 49. a4 {[%emt 0:00:14]} bxa3 {[%emt 0:00:06]} 50. bxa3 {[%emt 0:00:02]} Ra2 {[%emt 0:00:02]} (50... c3 $142 51. Rf5 c2 52. Rf1 Nc4+ 53. Kf4 {[#]} Rf2+ $3 {[%mdl 512]} 54. Rxf2 c1=Q+ 55. Kf5 e3 56. Rh2 Qf1+ 57. Kg4 Ne5+ 58. Kh5 e2 59. Rxe2 Qxe2+ 60. Kg5 Qc4 61. Bh3 Ke7 62. Be6 Kxe6 63. Kh6 Qg4 64. Kh7 Qg6+ 65. Kh8 Nf7#) 51. Kf4 {[%emt 0:00:07]} Nd3+ {[%emt 0:00:06]} 52. Ke3 {[%emt 0:00:04]} Rxa3 {[%emt 0:00:01]} (52... c3 $142 53. Rg6+ Kc7 54. Bf5 c2 55. Rg1 c1=Q+ 56. Rxc1+ Nxc1 57. a4 Kd6 58. Bxe4 Re2+ 59. Kd4 dxe4 60. a5 Nb3+ 61. Kc3 Nxa5 62. Kd4 Nc6+ 63. Kc4 Rc2+ 64. Kb5 Nd4+ 65. Kb6 Rc7 66. Ka5 Kc5 67. Ka6 e3 68. Ka5 Ra7#) 53. Rg7 {[%emt 0:00:08]} Ne5+ {[%emt 0:00:05] Black mates.} 54. Ke2 {[%emt 0:00:09]} d4 {[%emt 0:00:01]} 55. Rh7 {[%emt 0:00:03]} Ra2+ {[%emt 0:00:03]} 56. Kd1 {[%emt 0:00:02]} d3 {[%emt 0:00:09]} 57. Rh6+ {[%emt 0:00:06]} Kc5 {[%emt 0:00:02]} 58. Re6 {[%emt 0:00:02]} Kd4 {[%emt 0:00:09]} 59. Rd6+ {[%emt 0:00:11]} Kc3 {[%emt 0:00:05][%cal Ra2a1]} 60. Ke1 {[%emt 0:00:02]} d2+ {[%emt 0:00:07]} 61. Ke2 {[%emt 0:00:01]} Nd3 {[%emt 0:00:10]} 62. Bg4 {[%emt 0:00:13]} Ra1 {[%emt 0:00:04][%csl Gd2,Gd3][%cal Ra1e1]} 63. Rc6 {[%emt 0:00:10]} d1=Q+ {[%emt 0:00:06] Weighted Error Value: White=1.46/Black=0.67} (63... Re1# $142) 0-1